[Event "*** Titled Tuesday Blitz"]
[Site "Chess.com"]
[Date "2021.02.02"]
[Round "2"]
[White "IMJonathanCarlstedt"]
[Black "1977Ivan"]
[Result "0-1"]
[WhiteElo "2481"]
[BlackElo "2708"]
[TimeControl "180+1"]
[EndTime "10:20:16 PST"]
[Termination "1977Ivan won on time"]

1. d4 {[%clk 0:03:00.9]} 1... Nf6 {[%clk 0:02:59.4]} 2. Bf4 {[%clk 0:03:00]}
2... d6 {[%clk 0:02:59.1]} 3. Nf3 {[%clk 0:02:56.9]} 3... Nbd7 {[%clk
0:02:58.8]} 4. Nc3 {[%clk 0:02:56.2]} 4... c5 {[%clk 0:02:57.3]} 5. d5 {[%clk
0:02:54.9]} 5... b5 {[%clk 0:02:55.9]} 6. Nxb5 {[%clk 0:02:45]} 6... Qa5+ {[%clk
0:02:56.3]} 7. Nc3 {[%clk 0:02:44.9]} 7... Rb8 {[%clk 0:02:56.7]} 8. Bd2 {[%clk
0:02:34.1]} 8... Rxb2 {[%clk 0:02:54.6]} 9. e4 {[%clk 0:02:33.1]} 9... g6 {[%clk
0:02:51]} 10. Bd3 {[%clk 0:02:11.5]} 10... Bg7 {[%clk 0:02:49.9]} 11. O-O {[%clk
0:02:11]} 11... O-O {[%clk 0:02:48.7]} 12. a4 {[%clk 0:02:04.8]} 12... Ng4
{[%clk 0:02:18.9]} 13. Nb5 {[%clk 0:01:58]} 13... Qb6 {[%clk 0:02:18.6]} 14. Bc3
{[%clk 0:01:54.4]} 14... Bxc3 {[%clk 0:02:17.5]} 15. Nxc3 {[%clk 0:01:55]} 15...
Nde5 {[%clk 0:02:09.6]} 16. Nxe5 {[%clk 0:01:54]} 16... Nxe5 {[%clk 0:02:10.5]}
17. a5 {[%clk 0:01:49.9]} 17... Qb8 {[%clk 0:01:53.6]} 18. f4 {[%clk 0:01:43.6]}
18... Ng4 {[%clk 0:01:44.1]} 19. Qd2 {[%clk 0:01:15.8]} 19... c4 {[%clk
0:01:37]} 20. Be2 {[%clk 0:01:08.2]} 20... Nf6 {[%clk 0:01:31.6]} 21. Bf3 {[%clk
0:00:56]} 21... Qc7 {[%clk 0:01:24.8]} 22. Kh1 {[%clk 0:00:40.4]} 22... Bg4
{[%clk 0:01:24.1]} 23. Bxg4 {[%clk 0:00:30.9]} 23... Nxg4 {[%clk 0:01:25]} 24.
h3 {[%clk 0:00:31.4]} 24... Nf6 {[%clk 0:01:24.6]} 25. Rfe1 {[%clk 0:00:27.4]}
25... Nd7 {[%clk 0:00:57.7]} 26. Re3 {[%clk 0:00:16.5]} 26... Rfb8 {[%clk
0:00:56]} 27. Rae1 {[%clk 0:00:14.3]} 27... f6 {[%clk 0:00:47.1]} 28. g4 {[%clk
0:00:13.2]} 28... Qxa5 {[%clk 0:00:43.2]} 29. g5 {[%clk 0:00:11.1]} 29... Qb4
{[%clk 0:00:31.4]} 30. gxf6 {[%clk 0:00:10.9]} 30... exf6 {[%clk 0:00:31.1]} 31.
f5 {[%clk 0:00:11.2]} 31... Ne5 {[%clk 0:00:29.5]} 32. fxg6 {[%clk 0:00:09.5]}
32... hxg6 {[%clk 0:00:30.4]} 33. Rg3 {[%clk 0:00:09.3]} 33... Rb7 {[%clk
0:00:26.4]} 34. Rf1 {[%clk 0:00:08.9]} 34... Rf7 {[%clk 0:00:15.7]} 35. Qh6
{[%clk 0:00:08.3]} 35... Rg7 {[%clk 0:00:12.3]} 36. Rxf6 {[%clk 0:00:07.1]}
36... Rxc2 {[%clk 0:00:11.3]} 37. Qf4 {[%clk 0:00:05.2]} 37... Qb8 {[%clk
0:00:08.2]} 38. Nd1 {[%clk 0:00:01.7]} 38... c3 {[%clk 0:00:07]} 39. Ne3 {[%clk
0:00:01.3]} 39... Rc1+ {[%clk 0:00:06.7]} 40. Kh2 {[%clk 0:00:01.7]} 40... c2
{[%clk 0:00:07]} 41. Rg2 {[%clk 0:00:01.3]} 41... Rh1+ {[%clk 0:00:06.3]} 42.
Kxh1 {[%clk 0:00:01.8]} 42... c1=Q+ {[%clk 0:00:06.8]} 43. Kh2 {[%clk
0:00:02.7]} 43... Qc5 {[%clk 0:00:06.3]} 0-1

[Event "*** Titled Tuesday Blitz"]
[Site "Chess.com"]
[Date "2021.02.02"]
[Round "2"]
[White "KNCP_719"]
[Black "bogcsab"]
[Result "0-1"]
[WhiteElo "2591"]
[BlackElo "2171"]
[TimeControl "180+1"]
[EndTime "10:20:18 PST"]
[Termination "bogcsab won by resignation"]

1. e4 {[%clk 0:03:00.9]} 1... d6 {[%clk 0:02:59.6]} 2. d4 {[%clk 0:03:00.8]}
2... Nf6 {[%clk 0:02:59.9]} 3. Nc3 {[%clk 0:03:01.3]} 3... g6 {[%clk 0:02:59.8]}
4. h3 {[%clk 0:03:00.3]} 4... c6 {[%clk 0:02:59.5]} 5. a4 {[%clk 0:03:00.1]}
5... Nbd7 {[%clk 0:02:55.8]} 6. Be3 {[%clk 0:03:00.1]} 6... c5 {[%clk 0:02:55]}
7. Nge2 {[%clk 0:02:59.5]} 7... cxd4 {[%clk 0:02:53.4]} 8. Bxd4 {[%clk
0:02:59.3]} 8... Bg7 {[%clk 0:02:52.7]} 9. g4 {[%clk 0:02:59.8]} 9... O-O {[%clk
0:02:52.4]} 10. Bg2 {[%clk 0:03:00.2]} 10... Nc5 {[%clk 0:02:51.8]} 11. O-O
{[%clk 0:02:58.6]} 11... e5 {[%clk 0:02:47.8]} 12. Be3 {[%clk 0:02:54.3]} 12...
Ne6 {[%clk 0:02:46.7]} 13. Qd2 {[%clk 0:02:51]} 13... Qe7 {[%clk 0:02:43.2]} 14.
Rad1 {[%clk 0:02:35.1]} 14... Rd8 {[%clk 0:02:43.2]} 15. f4 {[%clk 0:02:27.3]}
15... exf4 {[%clk 0:02:36.8]} 16. Nxf4 {[%clk 0:02:28.2]} 16... Nxf4 {[%clk
0:02:11.1]} 17. Bxf4 {[%clk 0:02:27.5]} 17... Nxg4 {[%clk 0:02:05.4]} 18. hxg4
{[%clk 0:02:21.1]} 18... Bxg4 {[%clk 0:02:05.3]} 19. Rde1 {[%clk 0:02:13.5]}
19... Be5 {[%clk 0:01:54.5]} 20. Bg5 {[%clk 0:02:10]} 20... Qe6 {[%clk
0:01:37.6]} 21. Nd5 {[%clk 0:02:02.8]} 21... Bh3 {[%clk 0:01:11.8]} 22. Qd3
{[%clk 0:01:59.5]} 22... Bxg2 {[%clk 0:01:08.4]} 23. Kxg2 {[%clk 0:02:00.1]}
23... Qg4+ {[%clk 0:01:06.6]} 24. Kf2 {[%clk 0:01:53]} 24... Qxg5 {[%clk
0:00:58.1]} 25. c3 {[%clk 0:01:48.2]} 25... f5 {[%clk 0:00:54.8]} 26. exf5
{[%clk 0:01:39.8]} 26... Rf8 {[%clk 0:00:51.1]} 27. Ke2 {[%clk 0:01:30.3]} 27...
Bg3 {[%clk 0:00:31]} 28. Rg1 {[%clk 0:00:21.1]} 28... Rae8+ {[%clk 0:00:30.1]}
29. Ne3 {[%clk 0:00:21.8]} 29... Qf4 {[%clk 0:00:21.8]} 30. Ref1 {[%clk
0:00:17.2]} 30... Qe5 {[%clk 0:00:21.9]} 31. Kd2 {[%clk 0:00:14.8]} 31... Bf4
{[%clk 0:00:21.4]} 32. Rf3 {[%clk 0:00:13.1]} 32... Bxe3+ {[%clk 0:00:21.4]} 33.
Rxe3 {[%clk 0:00:12.6]} 33... Qxe3+ {[%clk 0:00:21.6]} 34. Qxe3 {[%clk
0:00:12.7]} 34... Rxe3 {[%clk 0:00:22.1]} 35. Kxe3 {[%clk 0:00:13.6]} 35... Rxf5
{[%clk 0:00:22.3]} 36. Rd1 {[%clk 0:00:12.9]} 36... Rf6 {[%clk 0:00:21.5]} 37.
Ke4 {[%clk 0:00:13]} 37... Kf7 {[%clk 0:00:21.7]} 38. Kd5 {[%clk 0:00:11.2]}
38... Ke7 {[%clk 0:00:22.1]} 39. a5 {[%clk 0:00:08.6]} 39... Rf5+ {[%clk
0:00:21.4]} 40. Kc4 {[%clk 0:00:08.7]} 40... Rxa5 {[%clk 0:00:21.5]} 41. Re1+
{[%clk 0:00:08.1]} 41... Re5 {[%clk 0:00:21.6]} 42. Ra1 {[%clk 0:00:07.5]} 42...
a6 {[%clk 0:00:21.4]} 43. Rh1 {[%clk 0:00:07.5]} 43... h5 {[%clk 0:00:21.4]} 44.
Rg1 {[%clk 0:00:07.5]} 44... g5 {[%clk 0:00:21.3]} 45. Kd4 {[%clk 0:00:07.3]}
45... h4 {[%clk 0:00:20.9]} 46. Rf1 {[%clk 0:00:03.9]} 46... h3 {[%clk
0:00:20.6]} 47. Rh1 {[%clk 0:00:03.5]} 47... g4 {[%clk 0:00:20.8]} 48. b4 {[%clk
0:00:03.6]} 48... Kf6 {[%clk 0:00:20.9]} 49. Rf1+ {[%clk 0:00:03.6]} 49... Kg5
{[%clk 0:00:21]} 50. Rf8 {[%clk 0:00:03.6]} 50... h2 {[%clk 0:00:20.7]} 51. Rg8+
{[%clk 0:00:04.5]} 51... Kf4 {[%clk 0:00:20.9]} 52. Rh8 {[%clk 0:00:05]} 52...
Kg3 {[%clk 0:00:21.2]} 0-1

[Event "*** Titled Tuesday Blitz"]
[Site "Chess.com"]
[Date "2021.02.02"]
[Round "2"]
[White "mikolka1985"]
[Black "Yaacovn"]
[Result "0-1"]
[WhiteElo "2563"]
[BlackElo "2884"]
[TimeControl "180+1"]
[EndTime "10:20:19 PST"]
[Termination "Yaacovn won on time"]

1. d4 {[%clk 0:03:00.7]} 1... Nf6 {[%clk 0:02:46.4]} 2. c4 {[%clk 0:02:58.9]}
2... e5 {[%clk 0:02:46.2]} 3. dxe5 {[%clk 0:02:58.1]} 3... Ne4 {[%clk
0:02:46.7]} 4. Nf3 {[%clk 0:02:53]} 4... Nc6 {[%clk 0:02:46.3]} 5. Nbd2 {[%clk
0:02:52.3]} 5... Bb4 {[%clk 0:02:45.8]} 6. a3 {[%clk 0:02:51.5]} 6... Nxd2
{[%clk 0:02:45.8]} 7. Bxd2 {[%clk 0:02:49.2]} 7... Bxd2+ {[%clk 0:02:46.7]} 8.
Qxd2 {[%clk 0:02:49.1]} 8... O-O {[%clk 0:02:47.4]} 9. Qc3 {[%clk 0:02:44.3]}
9... Qe7 {[%clk 0:02:47.6]} 10. Rd1 {[%clk 0:02:43.4]} 10... Re8 {[%clk
0:02:48]} 11. Rd5 {[%clk 0:02:43.1]} 11... b6 {[%clk 0:02:48.5]} 12. e3 {[%clk
0:02:42.1]} 12... Bb7 {[%clk 0:02:48.4]} 13. Be2 {[%clk 0:02:41.8]} 13... Rad8
{[%clk 0:02:48.8]} 14. O-O {[%clk 0:02:41.3]} 14... Nb8 {[%clk 0:02:49.2]} 15.
Rc1 {[%clk 0:02:32.5]} 15... Bxd5 {[%clk 0:02:43.8]} 16. cxd5 {[%clk 0:02:31.8]}
16... c5 {[%clk 0:02:44.2]} 17. d6 {[%clk 0:02:28.1]} 17... Qe6 {[%clk
0:02:44.6]} 18. Bc4 {[%clk 0:02:27.1]} 18... Qg6 {[%clk 0:02:43.1]} 19. Bd5
{[%clk 0:02:02.5]} 19... Nc6 {[%clk 0:02:33.1]} 20. b4 {[%clk 0:01:58.2]} 20...
cxb4 {[%clk 0:02:27.8]} 21. axb4 {[%clk 0:01:57.5]} 21... Rc8 {[%clk 0:02:24.1]}
22. b5 {[%clk 0:01:12.2]} 22... Ne7 {[%clk 0:02:03.8]} 23. Bc4 {[%clk
0:01:11.3]} 23... Nf5 {[%clk 0:01:53.9]} 24. e4 {[%clk 0:01:06.7]} 24... Nh6
{[%clk 0:01:47.6]} 25. Qd4 {[%clk 0:01:00.1]} 25... Rc5 {[%clk 0:01:43]} 26. Ra1
{[%clk 0:00:52.4]} 26... Rec8 {[%clk 0:01:10.3]} 27. Bf1 {[%clk 0:00:40.3]}
27... Qe6 {[%clk 0:01:06.6]} 28. h3 {[%clk 0:00:39.4]} 28... Ra8 {[%clk
0:00:47.8]} 29. g3 {[%clk 0:00:35.3]} 29... f6 {[%clk 0:00:38.9]} 30. exf6
{[%clk 0:00:34.1]} 30... gxf6 {[%clk 0:00:39.8]} 31. Ra4 {[%clk 0:00:30.4]}
31... Nf7 {[%clk 0:00:39.1]} 32. Bc4 {[%clk 0:00:29.4]} 32... Rxc4 {[%clk
0:00:32.7]} 33. Rxc4 {[%clk 0:00:28.6]} 33... Nxd6 {[%clk 0:00:31.4]} 34. Rb4
{[%clk 0:00:27.6]} 34... Re8 {[%clk 0:00:30.3]} 35. Nd2 {[%clk 0:00:26.6]} 35...
Qe5 {[%clk 0:00:30.2]} 36. Kg2 {[%clk 0:00:24.9]} 36... Qxd4 {[%clk 0:00:29.5]}
37. Rxd4 {[%clk 0:00:24.8]} 37... Nxb5 {[%clk 0:00:29.9]} 38. Rxd7 {[%clk
0:00:24.7]} 38... Rb8 {[%clk 0:00:27.1]} 39. f4 {[%clk 0:00:23.2]} 39... a5
{[%clk 0:00:27.4]} 40. Nc4 {[%clk 0:00:22.4]} 40... a4 {[%clk 0:00:27.4]} 41. e5
{[%clk 0:00:21.6]} 41... fxe5 {[%clk 0:00:27.5]} 42. fxe5 {[%clk 0:00:21.7]}
42... a3 {[%clk 0:00:27.9]} 43. Rd2 {[%clk 0:00:20.4]} 43... Ra8 {[%clk
0:00:26.8]} 44. Ra2 {[%clk 0:00:19.9]} 44... Ra6 {[%clk 0:00:25]} 45. Kf3 {[%clk
0:00:19.1]} 45... Kf7 {[%clk 0:00:25]} 46. Ke4 {[%clk 0:00:18.7]} 46... Nc3+
{[%clk 0:00:25.4]} 47. Kf5 {[%clk 0:00:18.6]} 47... Nxa2 {[%clk 0:00:26.3]} 48.
Nd6+ {[%clk 0:00:18.3]} 48... Kf8 {[%clk 0:00:26]} 49. e6 {[%clk 0:00:17.6]}
49... Nb4 {[%clk 0:00:23.2]} 50. Kf6 {[%clk 0:00:17.3]} 50... Nd5+ {[%clk
0:00:23.4]} 51. Ke5 {[%clk 0:00:17.4]} 51... Ne7 {[%clk 0:00:23.7]} 52. Kf6
{[%clk 0:00:17]} 52... a2 {[%clk 0:00:24.1]} 0-1

[Event "*** Titled Tuesday Blitz"]
[Site "Chess.com"]
[Date "2021.02.02"]
[Round "2"]
[White "Fighterman91"]
[Black "ruvat"]
[Result "1-0"]
[WhiteElo "2659"]
[BlackElo "2338"]
[TimeControl "180+1"]
[EndTime "10:20:19 PST"]
[Termination "Fighterman91 won on time"]

1. e4 {[%clk 0:03:00.9]} 1... d6 {[%clk 0:02:59.8]} 2. d4 {[%clk 0:03:01.1]}
2... Nf6 {[%clk 0:02:59.7]} 3. Nc3 {[%clk 0:02:58.1]} 3... g6 {[%clk 0:02:59.7]}
4. Be3 {[%clk 0:02:52.7]} 4... Bg7 {[%clk 0:02:59.6]} 5. Qd2 {[%clk 0:02:53.4]}
5... c6 {[%clk 0:02:59.4]} 6. O-O-O {[%clk 0:02:51.4]} 6... b5 {[%clk
0:02:55.5]} 7. f3 {[%clk 0:02:51.9]} 7... Qa5 {[%clk 0:02:51]} 8. Kb1 {[%clk
0:02:51.7]} 8... Nbd7 {[%clk 0:02:49.6]} 9. Bh6 {[%clk 0:02:51.3]} 9... Bxh6
{[%clk 0:02:48.1]} 10. Qxh6 {[%clk 0:02:52.2]} 10... b4 {[%clk 0:02:46]} 11.
Nce2 {[%clk 0:02:51.7]} 11... Ba6 {[%clk 0:02:45.8]} 12. Nc1 {[%clk 0:02:50.1]}
12... Bxf1 {[%clk 0:02:43.5]} 13. Rxf1 {[%clk 0:02:51]} 13... Nb6 {[%clk
0:02:37.5]} 14. Nge2 {[%clk 0:02:40.1]} 14... Na4 {[%clk 0:02:24.4]} 15. h4
{[%clk 0:02:24.3]} 15... Qb5 {[%clk 0:02:14.5]} 16. Qg5 {[%clk 0:02:21.5]} 16...
Qxg5 {[%clk 0:01:42.1]} 17. hxg5 {[%clk 0:02:21.2]} 17... Nd7 {[%clk 0:01:42.4]}
18. Rh6 {[%clk 0:02:11.2]} 18... Kf8 {[%clk 0:01:41.6]} 19. Rfh1 {[%clk
0:02:11.8]} 19... Kg7 {[%clk 0:01:41.4]} 20. Nd3 {[%clk 0:02:10.7]} 20... c5
{[%clk 0:01:38.6]} 21. f4 {[%clk 0:01:52.7]} 21... a5 {[%clk 0:01:33.1]} 22. f5
{[%clk 0:01:51.3]} 22... cxd4 {[%clk 0:01:28.3]} 23. Nxd4 {[%clk 0:01:50.9]}
23... Nac5 {[%clk 0:01:25.1]} 24. R1h4 {[%clk 0:01:19.6]} 24... Rac8 {[%clk
0:01:04.1]} 25. b3 {[%clk 0:01:17.9]} 25... Nxd3 {[%clk 0:01:01.7]} 26. cxd3
{[%clk 0:01:18.3]} 26... Ne5 {[%clk 0:01:01.3]} 27. Rh3 {[%clk 0:01:10.5]} 27...
Rc3 {[%clk 0:01:01]} 28. fxg6 {[%clk 0:01:03.5]} 28... fxg6 {[%clk 0:01:00.8]}
29. Ne6+ {[%clk 0:01:03.5]} 29... Kg8 {[%clk 0:00:57.5]} 30. d4 {[%clk
0:01:02.4]} 30... Rxh3 {[%clk 0:00:52.9]} 31. Rxh3 {[%clk 0:01:03]} 31... Nd7
{[%clk 0:00:38.5]} 32. Rf3 {[%clk 0:01:01.8]} 32... h6 {[%clk 0:00:36.7]} 33. a3
{[%clk 0:00:30]} 33... hxg5 {[%clk 0:00:34.3]} 34. axb4 {[%clk 0:00:30.5]} 34...
axb4 {[%clk 0:00:30.6]} 35. Nxg5 {[%clk 0:00:30.1]} 35... Rh2 {[%clk 0:00:24.1]}
36. Rg3 {[%clk 0:00:29.7]} 36... Rh1+ {[%clk 0:00:21.9]} 37. Kc2 {[%clk
0:00:29.8]} 37... Nf6 {[%clk 0:00:17.9]} 38. e5 {[%clk 0:00:30.1]} 38... Nd5
{[%clk 0:00:14]} 39. exd6 {[%clk 0:00:28.5]} 39... exd6 {[%clk 0:00:13.3]} 40.
Ne4 {[%clk 0:00:29.1]} 40... Kg7 {[%clk 0:00:07]} 41. Nxd6 {[%clk 0:00:29.4]}
41... Rf1 {[%clk 0:00:06.2]} 42. Ne4 {[%clk 0:00:23.7]} 42... Rf4 {[%clk
0:00:04.4]} 43. Kd3 {[%clk 0:00:23.8]} 43... Rf8 {[%clk 0:00:02.6]} 44. Ng5
{[%clk 0:00:21.5]} 44... Rf6 {[%clk 0:00:01.1]} 45. Ne4 {[%clk 0:00:20.1]} 1-0

[Event "*** Titled Tuesday Blitz"]
[Site "Chess.com"]
[Date "2021.02.02"]
[Round "2"]
[White "kidagent"]
[Black "ErikRonka"]
[Result "0-1"]
[WhiteElo "2259"]
[BlackElo "2468"]
[TimeControl "180+1"]
[EndTime "10:20:19 PST"]
[Termination "ErikRonka won by resignation"]

1. e4 {[%clk 0:03:00.9]} 1... c6 {[%clk 0:02:59.9]} 2. d4 {[%clk 0:03:00.5]}
2... d5 {[%clk 0:03:00.8]} 3. Nc3 {[%clk 0:03:00.5]} 3... dxe4 {[%clk
0:03:00.8]} 4. Nxe4 {[%clk 0:03:00.3]} 4... Bf5 {[%clk 0:03:01.3]} 5. Ng3 {[%clk
0:02:59.9]} 5... Bg6 {[%clk 0:03:01.9]} 6. Nf3 {[%clk 0:02:59.1]} 6... Nd7
{[%clk 0:03:01.5]} 7. h4 {[%clk 0:02:58.8]} 7... h6 {[%clk 0:03:02]} 8. h5
{[%clk 0:02:59.3]} 8... Bh7 {[%clk 0:03:02.4]} 9. Bd3 {[%clk 0:02:59.9]} 9...
Bxd3 {[%clk 0:03:02.9]} 10. Qxd3 {[%clk 0:03:00.7]} 10... e6 {[%clk 0:03:03.8]}
11. Bd2 {[%clk 0:02:59.3]} 11... Qc7 {[%clk 0:03:03.9]} 12. O-O-O {[%clk
0:02:59.7]} 12... Ngf6 {[%clk 0:03:04.4]} 13. Ne4 {[%clk 0:02:58]} 13... O-O-O
{[%clk 0:03:04.6]} 14. Kb1 {[%clk 0:02:54.8]} 14... c5 {[%clk 0:03:01.5]} 15.
dxc5 {[%clk 0:02:49.8]} 15... Nxc5 {[%clk 0:02:56.8]} 16. Nxc5 {[%clk
0:02:49.5]} 16... Rxd3 {[%clk 0:02:55.9]} 17. Nxd3 {[%clk 0:02:50.4]} 17... Bd6
{[%clk 0:02:47.6]} 18. g3 {[%clk 0:02:43.5]} 18... Rd8 {[%clk 0:02:42.9]} 19.
Rh4 {[%clk 0:02:39.7]} 19... Qb6 {[%clk 0:02:07]} 20. Be3 {[%clk 0:02:27]} 20...
Qc6 {[%clk 0:00:53.5]} 21. Nd2 {[%clk 0:02:16.4]} 21... Kb8 {[%clk 0:00:40.6]}
22. Rc4 {[%clk 0:02:12.3]} 22... Qg2 {[%clk 0:00:28.3]} 23. Ra4 {[%clk
0:01:16.8]} 23... b6 {[%clk 0:00:24]} 24. Nc4 {[%clk 0:01:12.6]} 24... Qf3
{[%clk 0:00:16.6]} 25. Rc1 {[%clk 0:01:07.2]} 25... Bc7 {[%clk 0:00:16.4]} 26.
Nce5 {[%clk 0:01:02.3]} 26... Qb7 {[%clk 0:00:09.7]} 27. Nxf7 {[%clk 0:00:59.6]}
27... Rd5 {[%clk 0:00:09.7]} 28. Nf4 {[%clk 0:00:48.6]} 28... Rf5 {[%clk
0:00:06.7]} 29. Nxe6 {[%clk 0:00:47.2]} 29... Nd5 {[%clk 0:00:06.3]} 30. Nxc7
{[%clk 0:00:31.9]} 30... Qxc7 {[%clk 0:00:05.5]} 31. Nh8 {[%clk 0:00:26.4]}
31... Nxe3 {[%clk 0:00:05]} 32. fxe3 {[%clk 0:00:26.7]} 32... Qxg3 {[%clk
0:00:05]} 33. Rd4 {[%clk 0:00:20.5]} 33... Qg2 {[%clk 0:00:03.4]} 34. Ng6 {[%clk
0:00:19.2]} 34... Rf1 {[%clk 0:00:02.9]} 35. Rdd1 {[%clk 0:00:17.1]} 35... Rxd1
{[%clk 0:00:02.7]} 36. Rxd1 {[%clk 0:00:18]} 36... Qg4 {[%clk 0:00:02.8]} 37.
Kc1 {[%clk 0:00:15.8]} 37... Qxh5 {[%clk 0:00:02.8]} 38. Nf4 {[%clk 0:00:16.1]}
38... Qf3 {[%clk 0:00:02.8]} 39. Re1 {[%clk 0:00:13.6]} 39... g5 {[%clk
0:00:03.3]} 40. Nd3 {[%clk 0:00:13.3]} 40... g4 {[%clk 0:00:03.7]} 41. Kd2
{[%clk 0:00:13.5]} 41... g3 {[%clk 0:00:03]} 42. Nf4 {[%clk 0:00:11.8]} 42... g2
{[%clk 0:00:03.2]} 43. Ne2 {[%clk 0:00:07]} 43... Qf2 {[%clk 0:00:02.8]} 44. Rg1
{[%clk 0:00:06.7]} 44... h5 {[%clk 0:00:02.7]} 45. Kd3 {[%clk 0:00:06.3]} 45...
h4 {[%clk 0:00:03.1]} 0-1

[Event "*** Titled Tuesday Blitz"]
[Site "Chess.com"]
[Date "2021.02.02"]
[Round "2"]
[White "AungTZ"]
[Black "ketster"]
[Result "1/2-1/2"]
[WhiteElo "2003"]
[BlackElo "2365"]
[TimeControl "180+1"]
[EndTime "10:20:19 PST"]
[Termination "Game drawn by repetition"]

1. e4 {[%clk 0:02:57.9]} 1... e5 {[%clk 0:02:59.8]} 2. Nf3 {[%clk 0:02:52.9]}
2... Nc6 {[%clk 0:02:59.8]} 3. d4 {[%clk 0:02:52.8]} 3... exd4 {[%clk
0:02:59.3]} 4. Nxd4 {[%clk 0:02:52.6]} 4... Bb4+ {[%clk 0:02:57.4]} 5. c3 {[%clk
0:02:49.7]} 5... Bc5 {[%clk 0:02:57.6]} 6. Be3 {[%clk 0:02:49.6]} 6... Bb6
{[%clk 0:02:57.8]} 7. Bc4 {[%clk 0:02:46.8]} 7... Nf6 {[%clk 0:02:57.3]} 8. Nd2
{[%clk 0:02:44]} 8... O-O {[%clk 0:02:55.4]} 9. O-O {[%clk 0:02:43.3]} 9... d5
{[%clk 0:02:54.8]} 10. Nxc6 {[%clk 0:02:34.5]} 10... bxc6 {[%clk 0:02:54.2]} 11.
Bxb6 {[%clk 0:02:26.6]} 11... axb6 {[%clk 0:02:51.9]} 12. Bd3 {[%clk 0:02:24.8]}
12... dxe4 {[%clk 0:02:41.5]} 13. Nxe4 {[%clk 0:02:24.3]} 13... Ba6 {[%clk
0:02:36.3]} 14. Bxa6 {[%clk 0:02:15.1]} 14... Rxa6 {[%clk 0:02:22.9]} 15. Nxf6+
{[%clk 0:02:14.6]} 15... Qxf6 {[%clk 0:02:22.1]} 16. Qd7 {[%clk 0:02:12.4]}
16... Ra7 {[%clk 0:02:08.1]} 17. Rfe1 {[%clk 0:02:08.1]} 17... h6 {[%clk
0:02:05.4]} 18. a3 {[%clk 0:02:05.3]} 18... c5 {[%clk 0:01:36.5]} 19. Rad1
{[%clk 0:02:02.9]} 19... Qf4 {[%clk 0:01:02.1]} 20. g3 {[%clk 0:01:55.3]} 20...
Qc4 {[%clk 0:01:01.9]} 21. Re7 {[%clk 0:01:40.6]} 21... Qb3 {[%clk 0:00:59.1]}
22. Rd2 {[%clk 0:01:37.2]} 22... b5 {[%clk 0:00:51]} 23. Qc6 {[%clk 0:01:31.8]}
23... b4 {[%clk 0:00:46.6]} 24. cxb4 {[%clk 0:01:13.5]} 24... cxb4 {[%clk
0:00:46.2]} 25. Qb5 {[%clk 0:00:59]} 25... c6 {[%clk 0:00:46]} 26. Qc5 {[%clk
0:00:49.9]} 26... Rxe7 {[%clk 0:00:27.3]} 27. Qxe7 {[%clk 0:00:49.6]} 27... bxa3
{[%clk 0:00:26.9]} 28. bxa3 {[%clk 0:00:49.7]} 28... Ra8 {[%clk 0:00:23.2]} 29.
Kg2 {[%clk 0:00:34.6]} 29... Qxa3 {[%clk 0:00:20.2]} 30. Rd8+ {[%clk 0:00:33.7]}
30... Kh7 {[%clk 0:00:20.2]} 31. Qe4+ {[%clk 0:00:32.9]} 31... g6 {[%clk
0:00:18.4]} 32. Rd7 {[%clk 0:00:31.6]} 32... Qb3 {[%clk 0:00:13.2]} 33. Qxc6
{[%clk 0:00:29.6]} 33... Rf8 {[%clk 0:00:08]} 34. Qf3 {[%clk 0:00:28.3]} 34...
Kg8 {[%clk 0:00:08]} 35. Re7 {[%clk 0:00:25]} 35... Qxf3+ {[%clk 0:00:07.1]} 36.
Kxf3 {[%clk 0:00:24.1]} 36... Kg7 {[%clk 0:00:07.6]} 37. h4 {[%clk 0:00:23.4]}
37... Kf6 {[%clk 0:00:08.1]} 38. Ra7 {[%clk 0:00:22.6]} 38... h5 {[%clk
0:00:08.8]} 39. Ra6+ {[%clk 0:00:22.3]} 39... Kg7 {[%clk 0:00:09.3]} 40. Kf4
{[%clk 0:00:20.9]} 40... Re8 {[%clk 0:00:09.6]} 41. Ra5 {[%clk 0:00:18.3]} 41...
Re2 {[%clk 0:00:09.6]} 42. f3 {[%clk 0:00:17.9]} 42... Rc2 {[%clk 0:00:09.9]}
43. Ra4 {[%clk 0:00:17.4]} 43... Rc3 {[%clk 0:00:09.7]} 44. Re4 {[%clk
0:00:16.8]} 44... Rb3 {[%clk 0:00:10]} 45. Rd4 {[%clk 0:00:16.8]} 45... Kf6
{[%clk 0:00:10]} 46. Re4 {[%clk 0:00:17.7]} 46... Kg7 {[%clk 0:00:09.8]} 47. Rc4
{[%clk 0:00:17.9]} 47... Kf6 {[%clk 0:00:10]} 48. Rc6+ {[%clk 0:00:18.5]} 48...
Kg7 {[%clk 0:00:10.6]} 49. Rc4 {[%clk 0:00:18.2]} 49... Kf6 {[%clk 0:00:10.5]}
50. Re4 {[%clk 0:00:18.6]} 50... Kg7 {[%clk 0:00:10.1]} 1/2-1/2